bitfinex-derivatives/quotes_ETHF0:USTF0_20251028
["timestamp","ask_amount","ask_price","bid_price","bid_amount"]
[1761677062453,0.4761,4111.0,4110.9,8.16565]
[1761677063552,0.1319,4111.5,4111.3,0.43781]
[1761677063553,0.3367,4111.4,4111.3,0.43781]
[1761677063746,0.3367,4111.4,4111.3,4.95781]
[1761677065550,0.03506801,4111.5,4111.4,0.2456]
[1761677065755,3.56425336,4112.0,4111.9,0.644]
[1761677065955,3.56425336,4112.0,4111.9,5.38104]
[1761677066253,3.79055336,4112.0,4111.9,5.38104]
[1761677066852,3.56425336,4112.0,4111.9,5.60074]
[1761677067056,3.34215336,4112.0,4111.9,5.60074]
[1761677067450,3.56425336,4112.0,4111.9,5.60074]
[1761677067651,3.90095336,4112.0,4111.9,5.60074]
[1761677068149,4.12725336,4112.0,4111.9,0.2119]
[1761677068349,4.12725336,4112.0,4111.9,4.7299]
[1761677068752,4.12725336,4112.0,4111.9,5.16764]
[1761677069454,0.9244,4111.5,4111.4,3.6321]
[1761677069752,0.9244,4111.5,4111.4,5.3801]
[1761677075760,0.9244,4111.5,4111.4,5.3791]
[1761677077162,0.3614,4111.0,4110.9,0.2119]
[1761677077361,0.9244,4110.5,4110.4,3.88269989]
[1761677077567,0.9244,4110.5,4110.4,8.39869989]
[1761677078567,0.9244,4110.5,4110.4,8.61109989]
[1761677078771,0.9244,4110.5,4110.4,8.17319989]
[1761677079066,0.9244,4110.5,4110.4,8.61109989]
[1761677079469,0.9244,4110.5,4110.4,8.17319989]
[1761677079670,0.9244,4110.5,4110.4,8.61109989]
[1761677080168,0.9244,4110.5,4110.4,8.17319989]
[1761677080973,0.9244,4110.5,4110.4,8.61109989]
[1761677081576,0.9244,4110.5,4110.4,8.83089989]
[1761677082078,0.9244,4110.5,4110.4,4.96539989]
[1761677082376,0.9244,4110.5,4110.4,5.40329989]
[1761677083982,0.9244,4110.5,4110.4,5.62309989]
[1761677084285,0.6981,4110.5,4110.4,5.62309989]
[1761677085486,3.6509,4111.4,4111.3,0.4316]
[1761677085685,3.6509,4111.4,4111.3,4.9466]
[1761677085884,3.9673,4111.4,4111.3,4.9466]
[1761677086382,3.9673,4111.4,4111.3,4.515]
[1761677086783,0.7595,4110.7,4110.6,4.07728]
[1761677086984,0.7595,4110.7,4110.6,8.59228]
[1761677087680,0.7595,4110.7,4110.6,4.07728]
[1761677087885,0.7595,4110.7,4110.6,8.59228]
[1761677090589,0.7595,4110.7,4110.6,8.59128]
[1761677090786,0.7595,4110.7,4110.6,8.1534]
[1761677091383,0.7595,4110.7,4110.6,0.2135]
[1761677091587,0.8969,4110.5,4110.4,0.23859989]
[1761677091784,0.8969,4109.5,4109.4,0.65336707]
[1761677091991,0.6856,4109.5,4109.4,5.60526707]
[1761677093389,0.3164,4109.5,4109.4,5.60526707]
[1761677094693,0.5805,4110.5,4110.4,0.2135]
[1761677094893,0.5805,4110.5,4110.4,4.7265]
[1761677095093,0.8969,4110.5,4110.4,4.7265]
[1761677095587,0.8969,4110.5,4110.4,4.9446]
[1761677095794,0.6856,4110.5,4110.4,5.6023]
[1761677095985,0.6856,4110.5,4110.0,0.4316]
[1761677095986,0.2318,4110.1,4110.0,0.4316]
[1761677096186,0.2318,4110.1,4110.0,5.60234]
[1761677096387,0.5805,4110.5,4110.4,0.4316]
[1761677096697,0.8969,4110.5,4110.4,4.9446]
[1761677097687,0.6856,4110.5,4110.4,5.6023]
[1761677098001,0.3164,4110.5,4110.4,5.6023]
[1761677098294,0.6856,4110.5,4110.4,5.6023]
[1761677098492,0.8969,4110.5,4110.4,4.9446]
[1761677098792,0.8969,4110.5,4110.4,4.7265]
[1761677098986,0.2318,4110.1,4109.7,0.2198]
[1761677099188,3.9673,4110.1,4110.0,0.4316]
[1761677099390,3.9673,4110.1,4110.0,0.86954]
[1761677099591,3.9673,4110.1,4110.0,5.38254]
[1761677099792,3.9673,4110.1,4110.0,0.86954]
[1761677100094,3.9673,4110.1,4110.0,5.38254]
[1761677100495,3.9673,4110.1,4110.0,5.60234]
[1761677100994,0.1374,4110.5,4110.4,0.6514]
[1761677101195,3.6509,4110.6,4110.5,0.4316]
[1761677101395,0.5805,4110.5,4110.4,4.513]
[1761677101596,0.2113,4110.2,4109.5,0.4333]
[1761677101794,8.2102,4110.5,4109.4,1.09686707]
[1761677101795,0.1374,4109.5,4109.4,0.00185707]
[1761677102093,0.8969,4109.5,4109.4,0.00185707]
[1761677102290,0.8969,4109.5,4109.4,4.51385707]
[1761677102490,0.8969,4109.5,4109.4,0.00185707]
[1761677102695,0.8969,4109.5,4109.4,4.51385707]
[1761677102998,0.8969,4109.5,4109.4,4.94545707]
[1761677103401,0.8969,4109.5,4109.4,0.00185707]
[1761677103698,0.8969,4109.5,4109.4,4.51385707]
[1761677104198,0.8969,4109.5,4109.4,0.00185707]
[1761677104398,0.8969,4109.5,4109.4,4.51385707]
[1761677108802,0.8969,4109.5,4109.4,4.95186707]
[1761677109603,0.8969,4109.5,4109.4,5.39186707]
[1761677109903,0.4538,4109.5,4109.4,5.61186707]
[1761677110100,0.3164,4109.5,4109.4,5.61186707]
[1761677110298,3.4286,4109.9,4109.8,1.09797]
[1761677110505,3.4286,4109.9,4109.8,5.60997]
[1761677110798,3.7557,4109.9,4109.8,5.38997]
[1761677112505,3.5349,4109.9,4109.8,5.60997]
[1761677113604,3.2078,4109.9,4109.8,5.60997]
[1761677113907,0.5479,4110.3,4110.2,1.09792]
[1761677114106,3.2078,4110.4,4110.3,1.09791]
[1761677114299,0.3271,4110.6,4110.5,1.09789]
[1761677114499,0.3271,4110.6,4110.5,5.60889]
[1761677115508,0.5875,4111.0,4110.9,0.44]
[1761677115810,0.5875,4111.0,4110.9,4.951]
[1761677116108,0.9146,4111.0,4110.9,4.951]
[1761677116901,0.3271,4111.0,4110.9,5.171]
[1761677117299,0.912,4111.0,4110.9,4.95]
[1761677117505,0.5479,4110.6,4110.5,0.44]
[1761677117699,0.5479,4110.6,4110.5,4.95]
[1761677117700,0.7772,4110.6,4110.5,4.95]
[1761677118105,0.7772,4110.6,4110.5,0.44]
[1761677118408,0.4501,4110.1,4110.0,0.22]
[1761677118708,0.4501,4109.7,4109.4,3.20965707]
[1761677118905,0.5849,4109.5,4109.4,0.44185707]
[1761677119105,0.912,4109.5,4109.4,4.95185707]
[1761677119508,0.912,4109.5,4109.4,0.44185707]
[1761677119711,0.912,4109.5,4109.4,4.95185707]
[1761677120504,0.912,4109.5,4109.4,0.44185707]
[1761677120707,0.912,4109.5,4109.4,0.00185707]
[1761677121009,0.912,4109.5,4109.4,4.51085707]
[1761677122707,0.912,4109.5,4109.4,0.00185707]
[1761677123105,0.912,4109.5,4109.4,4.51085707]
[1761677124208,0.912,4109.5,4109.4,0.00185707]
[1761677124710,0.7772,4109.3,4109.2,4.509]
[1761677124910,0.7772,4109.2,4109.1,2.747]
[1761677125308,0.2293,4107.9,4107.8,0.02434393]
[1761677125609,0.45290941,4107.9,4107.8,0.24723901]
[1761677125810,0.32990941,4107.9,4107.8,4.97623901]
[1761677126009,0.78000941,4107.9,4107.8,4.97623901]
[1761677126202,0.78000941,4107.9,4107.8,4.53623901]
[1761677126608,0.78000941,4107.9,4107.8,4.75623901]
[1761677126910,0.78000941,4107.9,4107.8,4.97623901]
[1761677127209,0.78000941,4107.9,4107.8,0.24723901]
[1761677127510,0.78000941,4107.9,4107.8,0.02723901]
[1761677128210,0.78000941,4107.9,4107.8,0.24723901]
[1761677130911,0.00280941,4107.9,4107.8,5.19623901]
[1761677131917,0.32990941,4107.9,4107.8,5.19623901]
[1761677134220,0.78000941,4107.9,4107.8,4.53623901]
[1761677134817,0.78000941,4107.9,4107.8,0.02723901]
[1761677135419,0.78000941,4107.9,4107.8,0.24723901]
[1761677136821,0.78000941,4107.9,4107.8,0.68541901]
[1761677137022,0.78000941,4107.9,4107.8,0.24723901]
[1761677137625,0.78000941,4107.9,4107.8,0.68541901]
[1761677137825,0.78000941,4107.9,4107.8,0.90541901]
[1761677138225,0.32990941,4107.9,4107.8,1.12541901]
[1761677138627,0.55070941,4107.9,4107.8,0.90541901]
[1761677138830,0.78000941,4107.9,4107.8,0.90541901]
[1761677139028,0.78000941,4107.9,4107.8,0.02723901]
[1761677139328,0.78000941,4107.9,4107.8,0.46541901]
[1761677139628,0.78000941,4107.9,4107.8,0.68541901]
[1761677140028,0.78000941,4107.9,4107.8,0.90551901]
[1761677140527,0.55070941,4107.9,4107.8,1.12551901]
[1761677140917,0.00280941,4107.9,4107.8,1.12551901]
[1761677141126,3.11035029,4108.0,4107.9,1.09767]
[1761677142128,0.00195774,4108.0,4107.9,1.09767]
[1761677142524,3.2078,4108.5,4108.4,1.09762]
[1761677142827,3.6641,4109.0,4108.9,0.6595]
[1761677143024,3.6641,4109.0,4108.9,5.1675]
[1761677143522,3.66639308,4109.0,4108.9,5.60556]
[1761677145221,3.21009308,4109.0,4108.9,5.60556]
[1761677146426,0.00229308,4109.0,4108.9,5.60556]
[1761677146624,0.00043601,4109.0,4108.9,8.7254198]
[1761677147424,3.2078,4109.6,4109.5,1.1945]
[1761677147635,3.5293,4110.2,4110.1,0.22]
[1761677147928,3.5293,4110.2,4110.1,5.1675]
[1761677148226,3.2078,4110.2,4110.1,5.1675]
[1761677148430,3.20979641,4110.2,4110.1,5.1675]
[1761677148829,3.75399641,4110.2,4110.1,4.9475]
[1761677149427,0.3215,4110.1,4109.4,0.22]
[1761677149627,0.3215,4110.0,4109.9,0.4395]
[1761677149834,0.3215,4110.0,4109.9,5.1665]
[1761677151322,0.1338,4109.0,4108.6,1.74039328]
[1761677151627,0.1338,4109.0,4104.6,10.963]
[1761677151628,0.3215,4107.8,4106.6,0.3284]
[1761677151826,0.3215,4107.1,4106.7,4.9558]
[1761677152034,0.5442,4107.1,4107.0,0.2194]
[1761677152437,0.54640405,4107.1,4107.0,0.22150583]
[1761677152629,0.77090405,4107.1,4107.0,0.22150583]
[1761677153433,0.32370405,4107.1,4107.0,0.77930583]
[1761677153734,0.00220405,4107.1,4107.0,0.77930583]
[1761677154535,0.32370405,4107.1,4107.0,0.77930583]
[1761677154835,0.54640405,4107.1,4107.0,0.77930583]
[1761677155035,0.54640405,4107.1,4107.0,0.45090583]
[1761677155235,0.77090405,4107.1,4107.0,0.00210583]
[1761677155633,0.00220405,4107.1,4107.0,5.28630583]
[1761677156736,0.32370405,4107.1,4107.0,5.28630583]
[1761677156936,0.00220405,4107.1,4107.0,5.28630583]
[1761677158032,0.32370405,4107.1,4107.0,5.28630583]
[1761677158240,0.77090405,4107.1,4107.0,4.95790583]
[1761677158536,0.546,4106.7,4106.6,4.507]
[1761677158731,3.9765,4106.7,4106.6,4.507]
[1761677159429,3.9765,4106.7,4106.6,4.50992653]
[1761677159634,0.7687,4105.9,4105.8,0.2194]
[1761677159834,0.5442,4105.7,4105.6,3.86561]
[1761677160033,0.5442,4105.7,4105.6,8.37261]
[1761677160233,0.5442,4105.7,4105.6,8.93041]
[1761677160435,3.2078,4106.2,4106.1,0.4488]
[1761677160637,0.1338,4107.6,4106.1,0.4488]
[1761677160638,0.22490405,4107.1,4106.7,0.43829]
[1761677160842,0.00220405,4107.1,4107.0,0.7772]
[1761677161041,0.32370405,4107.1,4107.0,5.2852]
[1761677161240,0.54640405,4107.1,4107.0,5.2852]
[1761677162241,0.54640405,4107.1,4107.0,4.9568]
[1761677163040,0.77090405,4107.1,4107.0,4.9568]
[1761677163545,0.77090405,4107.1,4107.0,5.2852]
[1761677163840,0.00220405,4107.1,4107.0,5.2852]
[1761677164938,0.00220405,4107.1,4107.0,5.4016]
[1761677166341,0.1338,4108.2,4107.8,0.4488]
[1761677166542,0.5442,4108.2,4108.1,0.4488]
[1761677166739,0.9025,4108.2,4108.1,0.4488]
[1761677167041,0.9025,4108.2,4108.1,0.2194]
[1761677167444,0.90490684,4108.2,4108.1,0.2194]
[1761677167840,0.7687,4107.1,4106.6,3.5362]
[1761677168146,0.7687,4106.2,4106.1,0.22226009]
[1761677168445,0.7687,4106.2,4106.1,4.73026009]
[1761677168641,0.3215,4106.2,4106.1,5.35136009]
[1761677168947,0.8694,4106.2,4106.1,4.51086009]
[1761677169444,0.8694,4106.2,4106.1,0.00286009]
[1761677169641,4.0772,4106.2,4106.1,4.51086009]
[1761677170144,4.0772,4106.2,4106.1,0.00286009]
[1761677170346,4.0772,4106.2,4106.1,3.36386009]
[1761677170742,4.0772,4106.2,4106.1,0.00286009]
[1761677170943,4.0772,4106.2,4106.1,4.51086009]
[1761677171141,4.15,4106.2,4106.1,0.00286009]
[1761677171334,4.0772,4106.2,4106.1,2.13386009]
[1761677172343,4.0772,4106.2,4106.1,4.51086009]
[1761677173145,4.0772,4106.2,4106.1,0.00286009]
[1761677173445,4.0772,4106.2,4106.1,2.68986009]
[1761677174049,4.0772,4106.2,4106.1,4.51086009]
[1761677174234,4.0772,4106.2,4106.1,0.00286009]
[1761677177144,3.8311,4106.2,4106.1,1.32122009]
[1761677177351,3.2078,4106.2,4106.1,1.32122009]
[1761677177745,3.2078,4106.2,4106.1,5.83022009]
[1761677178250,3.2078,4106.8,4106.7,1.31829]
[1761677178445,4.0502,4106.8,4106.7,5.0231]
[1761677178749,4.0502,4106.8,4106.7,4.7666]
[1761677180048,4.0502,4106.8,4106.7,4.509]
[1761677180350,0.6027,4106.3,4106.2,0.43834]
[1761677180548,0.8424,4106.3,4106.2,5.20494]
[1761677180844,0.6044,4106.3,4106.2,5.46144]
[1761677181049,3.2078,4106.8,4106.7,0.88]
[1761677181249,4.47637854,4106.8,4106.7,5.0231]
[1761677181843,4.71437854,4106.8,4106.7,5.4614]
[1761677182038,4.71437854,4106.8,4106.7,5.0231]
[1761677182246,3.87197854,4106.8,4106.7,5.389]
[1761677182443,3.2078,4107.3,4106.8,0.43829]
[1761677182651,3.2078,4107.3,4107.2,1.31824]
[1761677182854,3.2078,4107.3,4107.2,5.82724]
[1761677184839,3.2078,4107.3,4107.2,1.31824]
[1761677185045,3.2078,4107.3,4107.2,5.82724]
[1761677186348,3.2078,4107.3,4107.2,5.389]
[1761677187752,0.6044,4107.8,4107.7,0.5141]
[1761677188046,0.6044,4107.8,4107.0,0.0388]
[1761677188047,4.0502,4107.9,4107.8,0.5141]
[1761677188251,4.0502,4107.9,4107.8,4.0721]
[1761677190348,0.00240684,4108.2,4108.1,0.95225]
[1761677190555,0.3647,4108.1,4107.6,0.3659]
[1761677190754,0.6044,4107.8,4107.7,5.46029]
[1761677191053,0.6044,4107.8,4107.7,5.388]
[1761677191552,0.6044,4107.8,4107.7,5.82619]
[1761677191847,0.4777,4107.5,4107.4,0.2576]
[1761677192049,0.1538,4107.6,4106.9,3.64607]
[1761677192251,0.4777,4107.5,4107.4,4.7656]
[1761677192451,0.8424,4107.5,4107.4,4.7656]
[1761677193854,0.8424,4107.5,4107.4,0.2576]
[1761677194056,0.8424,4107.5,4107.4,4.7656]
[1761677194649,0.8424,4107.5,4107.4,0.2576]
[1761677194848,0.6027,4107.1,4107.0,0.2576]
[1761677195051,0.3647,4106.7,4106.5,0.43832]
[1761677195253,0.8424,4106.6,4106.5,0.2576]
[1761677195453,0.8424,4106.6,4106.5,4.7646]
[1761677196156,0.8424,4106.6,4106.5,5.387]
[1761677196548,0.3935,4107.0,4106.9,0.2576]
[1761677196749,0.6315,4107.0,4106.9,4.7646]
[1761677197054,0.9962,4107.0,4106.9,4.7646]
[1761677198559,0.9962,4107.0,4106.9,5.0211]
[1761677198857,0.9962,4107.0,4106.9,4.7646]
[1761677199050,0.2397,4106.7,4106.6,0.6235]
[1761677199251,0.8424,4106.3,4106.2,0.2576]
[1761677199456,0.1538,4106.5,4106.1,0.00286009]
[1761677199457,0.8424,4106.2,4106.1,0.26046009]
[1761677199658,0.8424,4106.2,4106.1,4.76746009]
[1761677201762,0.8424,4106.2,4106.1,5.36176009]
[1761677202155,0.8424,4106.2,4106.1,0.85476009]
[1761677202459,0.8424,4106.2,4106.1,5.36176009]
[1761677202654,0.8424,4106.2,4106.1,0.85476009]
[1761677202853,0.6044,4106.2,4106.1,5.36176009]
[1761677203361,0.6044,4106.2,4106.1,0.85476009]
[1761677203562,0.6044,4106.2,4106.1,5.36276009]
[1761677203865,0.6044,4106.2,4106.1,0.85476009]
[1761677204067,0.6044,4106.2,4106.1,5.36176009]
[1761677204466,0.6044,4106.2,4106.1,5.80012009]
[1761677205159,0.6315,4106.5,4106.4,0.2571]
[1761677205364,0.6315,4106.5,4106.4,4.7641]
[1761677205762,0.9929,4106.5,4106.4,4.7641]
[1761677207462,0.9929,4106.5,4106.4,5.20243]
[1761677207966,0.9929,4106.5,4106.4,5.43923]
[1761677208159,0.5978,4106.5,4106.4,5.79673]
[1761677212763,0.5978,4106.5,4106.4,5.3584]
[1761677213465,0.5978,4106.5,4106.1,0.00286009]
[1761677213466,0.2364,4106.2,4106.1,0.00286009]
[1761677213768,0.8391,4106.2,4106.1,4.50986009]
[1761677213966,0.8391,4106.2,4106.1,4.76696009]
[1761677215974,0.8391,4106.2,4106.1,0.25996009]
[1761677216273,0.8391,4106.2,4106.1,4.50986009]
[1761677218369,4.0469,4106.2,4106.1,0.00286009]
[1761677218674,4.0469,4106.2,4106.1,5.20532009]
[1761677219075,4.0469,4106.2,4106.1,4.76696009]
[1761677219471,4.0469,4106.2,4106.1,0.25996009]
[1761677219671,4.0469,4106.2,4106.1,4.76696009]
[1761677220270,3.2078,4106.2,4106.1,5.79962009]
[1761677220477,3.8056,4106.8,4106.7,0.4939]
[1761677220677,4.47571247,4106.8,4106.7,5.3584]
[1761677220968,0.8391,4106.3,4106.2,0.8514]
[1761677221168,0.8391,4106.3,4106.2,0.4939]
[1761677221377,1.50964772,4106.3,4106.2,5.0009]
[1761677221579,1.50964772,4106.3,4106.2,5.79675]
[1761677221772,1.50964772,4106.3,4106.2,5.3584]
[1761677221975,1.50964772,4106.3,4106.2,5.79675]
[1761677222166,0.5978,4106.3,4106.2,5.79675]
[1761677222376,0.5978,4106.5,4106.4,0.43833]
[1761677222675,0.5978,4106.4,4106.3,0.93224]
[1761677222876,0.9104853,4106.4,4106.3,1.28974]
[1761677223373,0.6740853,4106.4,4106.3,1.28974]
[1761677223574,1.2718853,4106.4,4106.3,1.28974]
[1761677223873,1.2718853,4106.4,4106.3,5.3584]
[1761677224676,0.9104853,4106.4,4106.3,5.79674]
[1761677224877,0.6740853,4106.4,4106.3,5.79674]
[1761677226178,3.2078,4106.8,4106.7,1.2897]
[1761677226378,3.88339254,4106.8,4106.7,5.7957]
[1761677227477,0.67559254,4106.8,4106.7,5.7957]
[1761677230080,3.5692,4107.3,4106.7,5.7957]
[1761677230381,3.7908,4107.3,4107.2,0.7744]
[1761677230578,4.68494386,4107.3,4107.2,5.2804]
[1761677234286,4.68494386,4107.3,4107.2,5.71864]
[1761677234484,3.88084386,4107.3,4107.2,5.71864]
[1761677234687,3.88084386,4107.3,4107.2,5.79144]
[1761677234983,0.7578,4108.0,4107.9,0.7885]
[1761677235185,0.8881,4108.0,4107.9,1.22667]
[1761677235388,0.7578,4108.0,4107.9,5.73167]
[1761677235587,0.5367,4108.0,4107.9,5.2935]
[1761677236284,0.5367,4108.0,4107.9,5.73167]
[1761677237080,0.8881,4108.0,4107.9,5.2935]
[1761677237583,0.21850684,4108.2,4108.1,0.66725]
[1761677237792,0.53910684,4108.2,4108.1,1.22665]
[1761677238383,0.00240684,4108.2,4108.1,1.22665]
[1761677238584,0.76020684,4108.2,4108.1,0.7885]
[1761677238880,0.76020684,4108.2,4108.1,1.22665]
[1761677239486,0.5367,4107.8,4107.7,0.7885]
[1761677239684,0.7578,4107.8,4107.7,5.2925]
[1761677239888,0.7578,4107.8,4107.7,5.73069]
[1761677240690,0.7578,4107.8,4107.7,1.22669]
[1761677240987,0.7578,4107.8,4107.7,5.73069]
[1761677241188,0.7578,4107.8,4107.7,0.7885]
[1761677241392,0.7578,4107.8,4107.7,5.2925]
[1761677241883,0.5367,4108.0,4107.9,0.7885]
[1761677242895,0.7578,4108.0,4107.9,0.7885]
[1761677243789,0.8881,4108.0,4107.9,0.7885]
[1761677244292,0.8881,4108.0,4107.9,1.22667]
[1761677245189,0.8881,4108.0,4107.9,0.7885]
[1761677246683,0.00240684,4108.2,4108.1,1.22665]
[1761677246993,0.00240684,4108.2,4108.1,5.72965]
[1761677247785,3.2078,4108.9,4108.8,1.22657]
[1761677247986,3.2078,4108.9,4108.8,5.72957]
[1761677248894,3.21015331,4108.9,4108.8,5.72957]
[1761677249097,3.74685331,4108.9,4108.8,5.2915]
[1761677249286,0.53905331,4108.9,4108.8,5.2915]
[1761677249883,0.53905331,4108.9,4108.8,5.72957]
[1761677250096,0.00235331,4108.9,4108.8,5.72957]
[1761677252887,3.2078,4109.5,4109.4,0.43801]
[1761677253088,3.2078,4109.5,4109.4,5.72851]
[1761677253793,3.2078,4110.1,4110.0,1.35994]
[1761677253995,0.3206,4110.4,4110.3,0.7885]
[1761677254192,0.32287175,4110.4,4110.3,5.2905]
[1761677254785,0.00227175,4110.4,4110.3,5.2905]
[1761677259901,0.00227175,4110.4,4110.3,5.2885]
[1761677262196,0.75687175,4110.4,4110.0,0.00187165]
[1761677262498,0.75687175,4110.4,4109.6,3.2078]
[1761677262499,0.2206,4108.6,4108.5,0.2326]
[1761677262700,0.4356,4108.6,4108.5,0.2326]
[1761677262894,0.7546,4108.6,4108.5,4.7316]
[1761677263097,0.7546,4108.6,4108.5,4.499]
[1761677263300,0.7546,4108.6,4108.5,4.73338502]
[1761677263897,3.9624,4108.6,4108.5,4.73338502]
[1761677265099,3.9624,4108.6,4108.5,0.23438502]
[1761677265298,3.9624,4108.6,4108.5,4.73338502]
[1761677265801,0.7546,4108.6,4108.5,4.73338502]
[1761677268003,3.9624,4108.6,4108.5,4.73338502]
[1761677268503,3.9624,4108.6,4108.5,0.00178502]
[1761677268798,4.62187876,4108.6,4108.5,0.00178502]
[1761677268999,0.573,4107.5,4107.4,0.4482]
[1761677269203,0.892,4107.5,4107.4,4.9472]
[1761677269399,0.319,4107.5,4107.4,5.2914]
[1761677269705,3.2078,4107.7,4107.6,0.7924]
[1761677270104,3.20967405,4107.7,4107.6,0.79426588]
[1761677274122,3.52867405,4107.7,4107.6,0.79426588]
[1761677275318,3.20967405,4107.7,4107.6,0.79426588]
[1761677275620,3.52867405,4107.7,4107.6,0.79426588]
[1761677276106,3.74367405,4107.7,4107.6,0.79426588]
[1761677278016,3.74367405,4107.7,4107.6,1.23246588]
[1761677279122,3.96427405,4107.7,4107.6,0.79426588]
[1761677279325,3.96427405,4107.7,4107.6,0.45006588]
[1761677280418,3.96427405,4107.7,4107.6,0.00186588]
[1761677280620,3.96427405,4107.7,4107.6,4.08986588]
[1761677281520,3.96427405,4107.7,4107.6,0.00186588]
[1761677281719,3.96427405,4107.7,4107.6,4.50086588]
[1761677282120,3.96427405,4107.7,4107.6,5.38726588]
[1761677282319,3.74367405,4107.7,4107.6,5.73146588]
[1761677283116,3.20967405,4107.7,4107.6,5.73146588]
[1761677283317,3.74367405,4107.7,4107.6,5.73146588]
[1761677283517,3.96427405,4107.7,4107.6,4.94906588]
[1761677283717,3.96427405,4107.7,4107.6,4.73346588]
[1761677284321,3.96427405,4107.7,4107.6,5.17166588]
[1761677285025,3.96427405,4107.7,4107.6,5.73146588]
[1761677285331,3.74367405,4107.7,4107.6,5.73146588]
[1761677286024,3.96427405,4107.7,4107.6,5.73146588]
[1761677288724,3.96427405,4107.7,4107.6,1.23246588]
[1761677288929,3.74367405,4107.7,4107.6,5.73146588]
[1761677290031,3.52867405,4107.7,4107.6,5.73146588]
[1761677290226,3.75777405,4107.7,4107.6,5.73146588]
[1761677290427,3.75777405,4107.7,4107.6,5.29326588]
[1761677290623,3.96727405,4107.7,4107.6,4.94906588]
[1761677292025,3.96727405,4107.7,4107.6,0.45006588]
[1761677292231,4.62650959,4107.7,4107.6,4.49986588]
[1761677292926,4.62650959,4107.7,4107.6,5.16626588]
[1761677293927,4.62650959,4107.7,4107.6,4.72806588]
[1761677294232,4.62650959,4107.7,4107.6,4.49986588]
[1761677295838,4.62650959,4107.7,4107.6,0.00186588]
[1761677296036,4.62650959,4107.7,4107.6,4.49986588]
[1761677299238,4.62830831,4107.7,4107.6,4.72806588]
[1761677299737,4.62830831,4107.7,4107.6,5.16626588]
[1761677299937,4.62830831,4107.7,4107.6,5.71666588]
[1761677300238,4.18970831,4107.7,4107.6,5.71666588]
[1761677300640,4.41880831,4107.7,4107.6,5.71666588]
[1761677301733,0.3323,4108.4,4108.3,0.3306]
[1761677301933,0.3323,4108.4,4108.3,5.71473]
[1761677302335,3.6464,4108.9,4108.8,1.21667]
[1761677302535,3.6464,4108.9,4108.8,5.2756]
[1761677302733,3.98113773,4108.9,4108.8,5.2756]
[1761677302934,3.98113773,4108.9,4108.8,4.945]
[1761677303140,3.98113773,4108.9,4108.8,4.7252]
[1761677303639,3.98113773,4108.9,4108.8,5.71367]
[1761677303839,3.21023773,4108.9,4108.8,5.71367]
[1761677304439,3.77163773,4108.9,4108.8,5.71367]
[1761677305237,3.77163773,4108.9,4108.8,5.2756]
[1761677305540,3.98113773,4108.9,4108.8,4.945]
[1761677305936,3.98113773,4108.9,4108.8,5.2756]
[1761677306137,3.77163773,4108.9,4108.8,5.2756]
[1761677306337,0.00243773,4108.9,4108.8,5.2756]
[1761677307546,0.00243773,4108.9,4108.8,5.71367]
[1761677310447,0.56383773,4108.9,4108.8,5.71367]
[1761677312648,0.904,4108.5,4108.4,0.88612]
[1761677312856,0.2095,4108.2,4108.1,0.2282]
[1761677313054,0.7709,4108.2,4108.1,5.71175]
[1761677313243,0.5614,4108.2,4108.1,5.2736]
[1761677313547,0.5614,4108.2,4108.1,5.71175]
[1761677313853,0.7709,4108.2,4108.1,5.38115]
[1761677314651,0.7709,4108.2,4108.1,4.943]
[1761677315149,0.7709,4108.2,4108.1,5.38115]
[1761677316155,0.7709,4108.2,4108.1,0.88615]
[1761677316351,0.4386,4107.7,4107.6,0.22166588]
[1761677316551,0.4386,4107.7,4107.6,0.00186588]
[1761677316748,0.4386,4107.7,4107.6,4.49686588]
[1761677317053,0.7709,4107.7,4107.6,4.49686588]
[1761677317254,0.7709,4107.7,4107.6,0.00186588]
[1761677317448,0.7709,4107.7,4107.6,4.49686588]
[1761677318653,0.7709,4107.7,4107.6,0.00186588]
[1761677318854,0.7709,4107.7,4107.6,3.79886588]
[1761677320155,1.41591028,4107.7,4107.6,0.00186588]
[1761677320753,0.7649,4106.6,4106.5,3.6501]
[1761677320950,0.7649,4106.6,4106.5,8.58342]
[1761677321145,3.3382,4107.0,4106.9,0.43828]
[1761677321146,3.8856,4107.0,4106.9,0.43828]
[1761677321352,4.1031,4107.0,4106.9,0.88058]
[1761677321751,4.1031,4107.0,4106.9,0.00178435]
[1761677322358,4.1031,4107.0,4106.9,4.49678435]
[1761677322558,4.1031,4107.0,4106.9,4.93506435]
[1761677322754,4.1031,4107.0,4106.9,5.16046435]
[1761677322955,0.5474,4107.3,4107.2,0.2169]
[1761677323152,0.7649,4107.3,4107.2,0.4423]
[1761677323456,0.8953,4107.0,4106.9,5.37736435]
[1761677324850,0.8953,4107.0,4106.9,5.72356435]
[1761677325959,0.8953,4107.0,4106.9,4.93908435]
[1761677326162,0.8953,4107.0,4106.9,0.44408435]
[1761677326360,0.8953,4107.0,4106.9,4.72118435]
[1761677326657,4.1031,4107.0,4106.9,4.49578435]
[1761677327359,4.1031,4107.0,4106.9,4.72118435]
[1761677327868,4.1031,4107.0,4106.9,4.49578435]
[1761677328458,4.1031,4107.0,4106.9,0.00178435]
[1761677328760,4.1031,4107.0,4106.9,4.49678435]
[1761677329054,4.1031,4107.0,4106.9,4.93506435]
[1761677329260,4.1031,4107.0,4106.9,4.49678435]
[1761677331461,4.1031,4107.0,4106.9,4.49578435]
[1761677332154,4.1031,4107.0,4106.9,0.00178435]
[1761677332365,4.1031,4107.0,4106.9,4.49578435]
[1761677333857,4.1031,4107.0,4106.9,0.00178435]
[1761677334059,4.1031,4107.0,4106.9,4.49578435]
[1761677336964,4.1031,4107.0,4106.9,4.72118435]
[1761677339560,4.1031,4107.0,4106.9,5.28428435]
[1761677340864,4.1031,4107.0,4106.9,4.93808435]
[1761677341669,4.1031,4107.0,4106.9,4.72118435]
[1761677341856,4.1031,4107.0,4106.9,4.93808435]
[1761677343269,4.74851403,4107.0,4106.9,4.93808435]
[1761677343468,4.74851403,4107.0,4106.9,5.72256435]